[Event "Early-Titled-Tuesday-Blitz-March-05-2024"]
[Site "Chess.com"]
[Date "2024.03.05"]
[Round "2"]
[White "TitarovVasiliYouTube"]
[Black "LiamPutnam2008"]
[Result "0-1"]
[WhiteElo "2509"]
[BlackElo "2913"]
[TimeControl "180+1"]
[EndTime "8:18:41 PST"]
[Termination "LiamPutnam2008 won on time"]

1. e4 {[%clk 0:03:00.9]} 1... e5 {[%clk 0:02:58.9]} 2. Nf3 {[%clk 0:03:00.9]}
2... Nf6 {[%clk 0:02:57.4]} 3. Nxe5 {[%clk 0:02:57.2]} 3... d6 {[%clk
0:02:57.6]} 4. Nf3 {[%clk 0:02:56.7]} 4... Nxe4 {[%clk 0:02:58.1]} 5. d4 {[%clk
0:02:54.8]} 5... d5 {[%clk 0:02:57.6]} 6. Bd3 {[%clk 0:02:55.1]} 6... Be7 {[%clk
0:02:57.7]} 7. O-O {[%clk 0:02:55.6]} 7... O-O {[%clk 0:02:58.1]} 8. c4 {[%clk
0:02:55.6]} 8... Nc6 {[%clk 0:02:46.5]} 9. Nc3 {[%clk 0:02:54.7]} 9... Nxc3
{[%clk 0:02:24.7]} 10. bxc3 {[%clk 0:02:55.6]} 10... dxc4 {[%clk 0:02:25.6]} 11.
Bxc4 {[%clk 0:02:56.5]} 11... Bg4 {[%clk 0:02:18.9]} 12. Bd3 {[%clk 0:02:22.8]}
12... Qd5 {[%clk 0:02:07.7]} 13. Rb1 {[%clk 0:02:10.2]} 13... b6 {[%clk
0:02:00.6]} 14. Rb5 {[%clk 0:01:56.3]} 14... Qd7 {[%clk 0:01:44.6]} 15. h3
{[%clk 0:01:40.4]} 15... a6 {[%clk 0:01:32.9]} 16. Rb1 {[%clk 0:01:35.2]} 16...
Bh5 {[%clk 0:01:28.8]} 17. Be3 {[%clk 0:01:30.8]} 17... Rad8 {[%clk 0:01:23.6]}
18. Bxa6 {[%clk 0:01:12.3]} 18... Ra8 {[%clk 0:01:11.7]} 19. Bc4 {[%clk
0:01:10.5]} 19... Bg6 {[%clk 0:01:10.2]} 20. Rb2 {[%clk 0:01:00.1]} 20... Ba3
{[%clk 0:01:08.5]} 21. Rd2 {[%clk 0:00:53.3]} 21... Na5 {[%clk 0:01:03.2]} 22.
Be2 {[%clk 0:00:49.6]} 22... Bd6 {[%clk 0:00:56.1]} 23. Ne5 {[%clk 0:00:28.7]}
23... Bxe5 {[%clk 0:00:54.6]} 24. dxe5 {[%clk 0:00:28.9]} 24... Qe6 {[%clk
0:00:55.4]} 25. f4 {[%clk 0:00:27.8]} 25... Be4 {[%clk 0:00:52.1]} 26. Rd7
{[%clk 0:00:22.6]} 26... Qc6 {[%clk 0:00:46.1]} 27. Bf3 {[%clk 0:00:19.8]} 27...
Bxf3 {[%clk 0:00:42.2]} 28. Rxf3 {[%clk 0:00:20.3]} 28... Nc4 {[%clk 0:00:41]}
29. Bf2 {[%clk 0:00:14.2]} 29... Rxa2 {[%clk 0:00:40.5]} 30. Rfd3 {[%clk
0:00:12.8]} 30... Nb2 {[%clk 0:00:35]} 31. Qf3 {[%clk 0:00:12.3]} 31... Qc4
{[%clk 0:00:18.2]} 32. Rd2 {[%clk 0:00:11.8]} 32... Ra1+ {[%clk 0:00:18.4]} 33.
Kh2 {[%clk 0:00:11.6]} 33... Na4 {[%clk 0:00:18.7]} 34. f5 {[%clk 0:00:06.7]}
34... Qxc3 {[%clk 0:00:14.5]} 35. Qf4 {[%clk 0:00:06.2]} 35... Nc5 {[%clk
0:00:10.6]} 36. Rd8 {[%clk 0:00:04.9]} 36... Ra8 {[%clk 0:00:09.8]} 37. Rxa8
{[%clk 0:00:03.7]} 37... Rxa8 {[%clk 0:00:10.7]} 38. f6 {[%clk 0:00:03.4]} 38...
Nd3 {[%clk 0:00:10.4]} 39. Rxd3 {[%clk 0:00:02.7]} 39... Qxd3 {[%clk 0:00:10.1]}
0-1

[Event "Early-Titled-Tuesday-Blitz-March-05-2024"]
[Site "Chess.com"]
[Date "2024.03.05"]
[Round "2"]
[White "evgchess5"]
[Black "biostatistician"]
[Result "1-0"]
[WhiteElo "2950"]
[BlackElo "2608"]
[TimeControl "180+1"]
[EndTime "8:18:43 PST"]
[Termination "evgchess5 won by resignation"]

1. e4 {[%clk 0:02:52.2]} 1... e5 {[%clk 0:02:59.7]} 2. Nf3 {[%clk 0:02:51.4]}
2... Nc6 {[%clk 0:02:59.9]} 3. Bc4 {[%clk 0:02:51.4]} 3... Bc5 {[%clk
0:02:59.2]} 4. c3 {[%clk 0:02:50]} 4... Nf6 {[%clk 0:02:58.8]} 5. d3 {[%clk
0:02:50.7]} 5... d6 {[%clk 0:02:58.7]} 6. O-O {[%clk 0:02:50.3]} 6... a6 {[%clk
0:02:59.2]} 7. Bb3 {[%clk 0:02:49.3]} 7... Ba7 {[%clk 0:02:58.8]} 8. Bd2 {[%clk
0:02:45]} 8... Ne7 {[%clk 0:02:51.1]} 9. Be3 {[%clk 0:02:43.5]} 9... Ng6 {[%clk
0:02:49.6]} 10. Nbd2 {[%clk 0:02:41.9]} 10... O-O {[%clk 0:02:47]} 11. Bxa7
{[%clk 0:02:40.4]} 11... Rxa7 {[%clk 0:02:47]} 12. Re1 {[%clk 0:02:39.7]} 12...
Nf4 {[%clk 0:02:39.9]} 13. Nf1 {[%clk 0:02:32.8]} 13... Bg4 {[%clk 0:02:39.1]}
14. h3 {[%clk 0:02:28.5]} 14... Bh5 {[%clk 0:02:38.5]} 15. Ng3 {[%clk
0:02:25.3]} 15... Ra8 {[%clk 0:02:31]} 16. Nxh5 {[%clk 0:02:22.7]} 16... N6xh5
{[%clk 0:02:31.9]} 17. Kh2 {[%clk 0:02:06.8]} 17... Qf6 {[%clk 0:02:21.6]} 18.
g3 {[%clk 0:02:01.4]} 18... Ne6 {[%clk 0:02:17.9]} 19. Rf1 {[%clk 0:01:58.4]}
19... Qh6 {[%clk 0:02:12.8]} 20. Qd2 {[%clk 0:01:47.4]} 20... Qxd2 {[%clk
0:02:09.9]} 21. Nxd2 {[%clk 0:01:46.4]} 21... Nc5 {[%clk 0:02:09.5]} 22. Bc2
{[%clk 0:01:44.7]} 22... g6 {[%clk 0:02:05]} 23. d4 {[%clk 0:01:34.8]} 23... Ne6
{[%clk 0:02:03.4]} 24. Nf3 {[%clk 0:01:34.6]} 24... exd4 {[%clk 0:01:45.5]} 25.
cxd4 {[%clk 0:01:33.4]} 25... Nf6 {[%clk 0:01:45.9]} 26. Rfe1 {[%clk 0:01:29.2]}
26... Rfe8 {[%clk 0:01:45.1]} 27. Rad1 {[%clk 0:01:28.1]} 27... Rad8 {[%clk
0:01:44.6]} 28. Kg2 {[%clk 0:01:26.3]} 28... c5 {[%clk 0:01:39.5]} 29. e5 {[%clk
0:01:16.6]} 29... dxe5 {[%clk 0:01:34.3]} 30. dxe5 {[%clk 0:01:15.7]} 30... Nd5
{[%clk 0:01:29.4]} 31. Be4 {[%clk 0:01:11.8]} 31... Nb4 {[%clk 0:01:11.7]} 32.
Rxd8 {[%clk 0:00:58.2]} 32... Rxd8 {[%clk 0:01:10.3]} 33. Bxb7 {[%clk
0:00:58.8]} 33... Rb8 {[%clk 0:01:05.8]} 34. Be4 {[%clk 0:00:53.1]} 34... Nxa2
{[%clk 0:01:05]} 35. Re2 {[%clk 0:00:48.2]} 35... c4 {[%clk 0:01:01]} 36. Bd5
{[%clk 0:00:42.2]} 36... Rb4 {[%clk 0:00:59.5]} 37. Rc2 {[%clk 0:00:38.4]} 37...
Rb6 {[%clk 0:00:39.8]} 38. Bxc4 {[%clk 0:00:35.4]} 38... Nb4 {[%clk 0:00:40]}
39. Rd2 {[%clk 0:00:35.5]} 39... Kf8 {[%clk 0:00:35.3]} 40. Rd7 {[%clk
0:00:32.3]} 40... Ke8 {[%clk 0:00:34.9]} 41. Ra7 {[%clk 0:00:28.6]} 41... Nc6
{[%clk 0:00:33.1]} 42. Rxa6 {[%clk 0:00:27.4]} 42... Rxa6 {[%clk 0:00:28.3]} 43.
Bxa6 {[%clk 0:00:27.4]} 43... Nb4 {[%clk 0:00:28.6]} 44. Bc4 {[%clk 0:00:26.5]}
44... Nc5 {[%clk 0:00:28]} 45. Ng5 {[%clk 0:00:24.6]} 45... Nbd3 {[%clk
0:00:23.9]} 46. f4 {[%clk 0:00:20.4]} 46... Nxb2 {[%clk 0:00:22]} 47. Bxf7+
{[%clk 0:00:20.2]} 47... Kf8 {[%clk 0:00:21.8]} 48. Ba2 {[%clk 0:00:19]} 48...
h6 {[%clk 0:00:19.2]} 49. Ne6+ {[%clk 0:00:19.2]} 49... Ke7 {[%clk 0:00:19.6]}
50. Nxc5 {[%clk 0:00:16.7]} 1-0

[Event "Early-Titled-Tuesday-Blitz-March-05-2024"]
[Site "Chess.com"]
[Date "2024.03.05"]
[Round "2"]
[White "amanjazu"]
[Black "Knightmare1014"]
[Result "1-0"]
[WhiteElo "2542"]
[BlackElo "2327"]
[TimeControl "180+1"]
[EndTime "8:18:44 PST"]
[Termination "amanjazu won on time"]

1. g3 {[%clk 0:03:00.9]} 1... d5 {[%clk 0:02:58.2]} 2. Bg2 {[%clk 0:03:01.8]}
2... Nf6 {[%clk 0:02:58.4]} 3. f4 {[%clk 0:03:02.1]} 3... Bf5 {[%clk 0:02:57.3]}
4. Nf3 {[%clk 0:03:02.4]} 4... e6 {[%clk 0:02:56.6]} 5. O-O {[%clk 0:03:03.3]}
5... Be7 {[%clk 0:02:55.5]} 6. d3 {[%clk 0:03:04.2]} 6... h6 {[%clk 0:02:55.8]}
7. e3 {[%clk 0:03:02.7]} 7... O-O {[%clk 0:02:52.1]} 8. Qe2 {[%clk 0:03:03.2]}
8... c5 {[%clk 0:02:50.6]} 9. Nc3 {[%clk 0:03:03.6]} 9... Nc6 {[%clk 0:02:50.4]}
10. e4 {[%clk 0:03:03.7]} 10... Bh7 {[%clk 0:02:44.8]} 11. h3 {[%clk 0:03:00.3]}
11... c4 {[%clk 0:02:39.1]} 12. e5 {[%clk 0:02:50]} 12... Ne8 {[%clk 0:02:30.1]}
13. d4 {[%clk 0:02:48.7]} 13... Nb4 {[%clk 0:02:24.4]} 14. Ne1 {[%clk
0:02:48.7]} 14... a6 {[%clk 0:02:20.6]} 15. Nd1 {[%clk 0:02:44.5]} 15... b5
{[%clk 0:02:18.5]} 16. c3 {[%clk 0:02:43.3]} 16... Nd3 {[%clk 0:02:17.2]} 17. g4
{[%clk 0:02:43.6]} 17... Bh4 {[%clk 0:02:11.8]} 18. Bd2 {[%clk 0:02:40.1]} 18...
Nxe1 {[%clk 0:02:10.1]} 19. Bxe1 {[%clk 0:02:41]} 19... Bd3 {[%clk 0:02:09.9]}
20. Bxh4 {[%clk 0:02:40.4]} 20... Qxh4 {[%clk 0:02:09.3]} 21. Qf2 {[%clk
0:02:38]} 21... Qxf2+ {[%clk 0:02:05.1]} 22. Rxf2 {[%clk 0:02:38.9]} 22... a5
{[%clk 0:02:02.5]} 23. Bf1 {[%clk 0:02:39.3]} 23... Be4 {[%clk 0:01:59.4]} 24.
Ne3 {[%clk 0:02:39.4]} 24... b4 {[%clk 0:01:58]} 25. f5 {[%clk 0:02:38.3]} 25...
Nc7 {[%clk 0:01:57.2]} 26. Bg2 {[%clk 0:02:38.2]} 26... Bxg2 {[%clk 0:01:55]}
27. Kxg2 {[%clk 0:02:38.5]} 27... Nb5 {[%clk 0:01:54.1]} 28. Rc1 {[%clk
0:02:36.1]} 28... Rab8 {[%clk 0:01:52.2]} 29. Kf3 {[%clk 0:02:34.6]} 29... Rfc8
{[%clk 0:01:48]} 30. Ng2 {[%clk 0:02:34.2]} 30... Rb6 {[%clk 0:01:44.4]} 31. Nf4
{[%clk 0:02:34]} 31... Rcb8 {[%clk 0:01:42.1]} 32. Ke3 {[%clk 0:02:32.4]} 32...
Nc7 {[%clk 0:01:41.1]} 33. fxe6 {[%clk 0:02:16.3]} 33... fxe6 {[%clk 0:01:39.5]}
34. Ng6 {[%clk 0:02:16.9]} 34... bxc3 {[%clk 0:01:37]} 35. bxc3 {[%clk
0:02:16.7]} 35... Rb2 {[%clk 0:01:31.4]} 36. Rcf1 {[%clk 0:02:16.3]} 36... a4
{[%clk 0:01:20.4]} 37. h4 {[%clk 0:02:14.9]} 37... Rxf2 {[%clk 0:01:17.2]} 38.
Rxf2 {[%clk 0:02:15]} 38... a3 {[%clk 0:01:15.3]} 39. h5 {[%clk 0:02:15.3]}
39... Nb5 {[%clk 0:01:13.5]} 40. Kd2 {[%clk 0:02:14.4]} 40... Na7 {[%clk
0:01:03.4]} 41. Ne7+ {[%clk 0:02:14.1]} 41... Kh7 {[%clk 0:01:01.4]} 42. Kc1
{[%clk 0:01:55]} 42... Re8 {[%clk 0:00:56]} 43. Rf7 {[%clk 0:01:54.4]} 43... Nc8
{[%clk 0:00:52.1]} 44. Ng6 {[%clk 0:01:49.6]} 44... Nb6 {[%clk 0:00:36.3]} 45.
Ra7 {[%clk 0:01:39.8]} 45... Ra8 {[%clk 0:00:30.9]} 46. Rxa8 {[%clk 0:01:37.7]}
46... Nxa8 {[%clk 0:00:30.6]} 47. Nf8+ {[%clk 0:01:38.4]} 47... Kg8 {[%clk
0:00:28.9]} 48. Nxe6 {[%clk 0:01:39.3]} 48... Kf7 {[%clk 0:00:25.7]} 49. Nc5
{[%clk 0:01:39.6]} 49... Nb6 {[%clk 0:00:23.9]} 50. Kd2 {[%clk 0:01:39.6]} 50...
Ke7 {[%clk 0:00:22.5]} 51. Ke3 {[%clk 0:01:39.7]} 51... Na8 {[%clk 0:00:19.9]}
52. Na6 {[%clk 0:01:34]} 52... Nb6 {[%clk 0:00:18.9]} 53. Nb4 {[%clk 0:01:33.9]}
53... Ke6 {[%clk 0:00:17.5]} 54. Nc2 {[%clk 0:01:34.1]} 54... Na4 {[%clk
0:00:17]} 55. Kd2 {[%clk 0:01:34.8]} 55... Nb2 {[%clk 0:00:13.8]} 56. Nxa3
{[%clk 0:01:35.3]} 56... Nd3 {[%clk 0:00:13.7]} 57. Nb5 {[%clk 0:01:35.8]} 57...
Nf2 {[%clk 0:00:12.4]} 58. Nc7+ {[%clk 0:01:36.2]} 58... Kd7 {[%clk 0:00:12.5]}
59. Nxd5 {[%clk 0:01:37.1]} 59... Nxg4 {[%clk 0:00:12.6]} 60. a4 {[%clk
0:01:36.5]} 60... Ke6 {[%clk 0:00:10]} 61. Ne3 {[%clk 0:01:35.2]} 61... Nh2
{[%clk 0:00:08.3]} 62. Nxc4 {[%clk 0:01:34.8]} 62... Nf3+ {[%clk 0:00:08]} 63.
Ke3 {[%clk 0:01:35.4]} 63... Ng5 {[%clk 0:00:08.1]} 64. a5 {[%clk 0:01:34.6]}
64... Nf7 {[%clk 0:00:08.2]} 65. Ke4 {[%clk 0:01:33.9]} 65... Nd8 {[%clk
0:00:07.9]} 66. d5+ {[%clk 0:01:34.1]} 66... Ke7 {[%clk 0:00:08]} 67. a6 {[%clk
0:01:34.7]} 67... Kd7 {[%clk 0:00:02.3]} 68. a7 {[%clk 0:01:33.8]} 1-0

[Event "Early-Titled-Tuesday-Blitz-March-05-2024"]
[Site "Chess.com"]
[Date "2024.03.05"]
[Round "2"]
[White "Kislov_Oleg"]
[Black "JSPrepz"]
[Result "0-1"]
[WhiteElo "2575"]
[BlackElo "2871"]
[TimeControl "180+1"]
[EndTime "8:18:46 PST"]
[Termination "JSPrepz won by checkmate"]

1. e4 {[%clk 0:02:57.4]} 1... e5 {[%clk 0:03:00.1]} 2. Nf3 {[%clk 0:02:57.5]}
2... Nc6 {[%clk 0:03:00.6]} 3. d4 {[%clk 0:02:58]} 3... exd4 {[%clk 0:03:00.7]}
4. Nxd4 {[%clk 0:02:58.9]} 4... Nf6 {[%clk 0:03:01]} 5. Nc3 {[%clk 0:02:59.2]}
5... Bc5 {[%clk 0:02:58.3]} 6. Be3 {[%clk 0:02:58]} 6... Bb6 {[%clk 0:02:58.2]}
7. Bc4 {[%clk 0:02:55.9]} 7... O-O {[%clk 0:02:57.8]} 8. O-O {[%clk 0:02:54.7]}
8... Re8 {[%clk 0:02:48.8]} 9. Nxc6 {[%clk 0:02:53.7]} 9... bxc6 {[%clk
0:02:48.5]} 10. Bxb6 {[%clk 0:02:41.8]} 10... axb6 {[%clk 0:02:49.4]} 11. f3
{[%clk 0:02:41.2]} 11... d5 {[%clk 0:02:37.1]} 12. exd5 {[%clk 0:02:38.3]} 12...
b5 {[%clk 0:02:37.5]} 13. Bb3 {[%clk 0:02:34.7]} 13... b4 {[%clk 0:02:34]} 14.
Ne4 {[%clk 0:02:32.4]} 14... Nxd5 {[%clk 0:02:28.8]} 15. Re1 {[%clk 0:02:19.2]}
15... Be6 {[%clk 0:02:09.5]} 16. Nc5 {[%clk 0:02:13]} 16... Qd6 {[%clk
0:02:08.4]} 17. Qd4 {[%clk 0:01:54.6]} 17... Nf4 {[%clk 0:01:48.3]} 18. Nxe6
{[%clk 0:01:34.6]} 18... Nxe6 {[%clk 0:01:24.7]} 19. Qc4 {[%clk 0:01:33.2]}
19... Red8 {[%clk 0:01:08.4]} 20. g3 {[%clk 0:01:22.6]} 20... Ra5 {[%clk
0:00:59.5]} 21. c3 {[%clk 0:01:04.7]} 21... bxc3 {[%clk 0:00:56]} 22. Rad1
{[%clk 0:00:54.1]} 22... Rd5 {[%clk 0:00:50.3]} 23. Qxc3 {[%clk 0:00:45.4]}
23... Rxd1 {[%clk 0:00:44.7]} 24. Rxd1 {[%clk 0:00:46.3]} 24... Nd4 {[%clk
0:00:44.4]} 25. Kf2 {[%clk 0:00:43]} 25... c5 {[%clk 0:00:44.7]} 26. Qc4 {[%clk
0:00:39.6]} 26... Qf6 {[%clk 0:00:43]} 27. Rd3 {[%clk 0:00:38.9]} 27... Re8
{[%clk 0:00:29.4]} 28. Bd1 {[%clk 0:00:21.4]} 28... Qe5 {[%clk 0:00:27.9]} 29.
Qc3 {[%clk 0:00:19.2]} 29... Qh5 {[%clk 0:00:25.6]} 30. h4 {[%clk 0:00:18]}
30... Qf5 {[%clk 0:00:25.1]} 31. Qd2 {[%clk 0:00:17.5]} 31... Qh3 {[%clk
0:00:24.7]} 32. f4 {[%clk 0:00:10.5]} 32... Qh2+ {[%clk 0:00:23.6]} 33. Kf1
{[%clk 0:00:11]} 33... Qh1+ {[%clk 0:00:23.5]} 34. Kf2 {[%clk 0:00:11.6]} 34...
g6 {[%clk 0:00:12.2]} 35. a4 {[%clk 0:00:08.6]} 35... Qh2+ {[%clk 0:00:12.3]}
36. Kf1 {[%clk 0:00:08.4]} 36... Qh1+ {[%clk 0:00:12.9]} 37. Kf2 {[%clk
0:00:08.9]} 37... Nf5 {[%clk 0:00:12.1]} 38. Bg4 {[%clk 0:00:05.4]} 38... Qh2+
{[%clk 0:00:12.2]} 39. Kf1 {[%clk 0:00:05.9]} 39... Nxg3+ {[%clk 0:00:11.5]} 40.
Rxg3 {[%clk 0:00:05.6]} 40... Qxg3 {[%clk 0:00:12.4]} 41. Be2 {[%clk 0:00:03.5]}
41... Qh3+ {[%clk 0:00:12.1]} 42. Kf2 {[%clk 0:00:03.4]} 42... Qxh4+ {[%clk
0:00:13]} 43. Kf3 {[%clk 0:00:02.8]} 43... Qh1+ {[%clk 0:00:13.2]} 44. Kf2
{[%clk 0:00:02.9]} 44... h5 {[%clk 0:00:14.1]} 45. a5 {[%clk 0:00:02.8]} 45...
h4 {[%clk 0:00:13.7]} 46. a6 {[%clk 0:00:03.4]} 46... h3 {[%clk 0:00:14.3]} 47.
a7 {[%clk 0:00:03.5]} 47... Qg2+ {[%clk 0:00:14.8]} 48. Ke1 {[%clk 0:00:02.2]}
48... Qg1# {[%clk 0:00:14.7]} 0-1

[Event "Early-Titled-Tuesday-Blitz-March-05-2024"]
[Site "Chess.com"]
[Date "2024.03.05"]
[Round "2"]
[White "SilverSwords13"]
[Black "Mariia89"]
[Result "1/2-1/2"]
[WhiteElo "2482"]
[BlackElo "2259"]
[TimeControl "180+1"]
[EndTime "8:18:47 PST"]
[Termination "Game drawn by repetition"]

1. d4 {[%clk 0:03:00.9]} 1... Nf6 {[%clk 0:02:59.1]} 2. Nf3 {[%clk 0:03:01.2]}
2... c5 {[%clk 0:02:59.5]} 3. d5 {[%clk 0:02:57.4]} 3... d6 {[%clk 0:02:59.2]}
4. c4 {[%clk 0:02:56.3]} 4... b5 {[%clk 0:02:59.6]} 5. cxb5 {[%clk 0:02:55.8]}
5... a6 {[%clk 0:02:59.6]} 6. Nc3 {[%clk 0:02:54.8]} 6... Qa5 {[%clk 0:02:59.4]}
7. e3 {[%clk 0:02:52.5]} 7... axb5 {[%clk 0:02:58.9]} 8. Bxb5+ {[%clk
0:02:52.4]} 8... Bd7 {[%clk 0:02:59.4]} 9. Qd3 {[%clk 0:02:44.7]} 9... g6 {[%clk
0:02:51.4]} 10. O-O {[%clk 0:02:42.8]} 10... Bg7 {[%clk 0:02:51.6]} 11. Bd2
{[%clk 0:02:31.7]} 11... O-O {[%clk 0:02:49.9]} 12. Bxd7 {[%clk 0:02:11.3]}
12... Nbxd7 {[%clk 0:02:49]} 13. Ne4 {[%clk 0:02:11.1]} 13... Qb6 {[%clk
0:02:47.7]} 14. Bc3 {[%clk 0:02:08.5]} 14... Rfb8 {[%clk 0:02:34.8]} 15. Nfd2
{[%clk 0:02:03.3]} 15... Qb7 {[%clk 0:02:31.3]} 16. Nxf6+ {[%clk 0:02:02.8]}
16... Nxf6 {[%clk 0:02:30.7]} 17. e4 {[%clk 0:02:01]} 17... Nd7 {[%clk
0:02:23.1]} 18. Bxg7 {[%clk 0:01:38.4]} 18... Kxg7 {[%clk 0:02:23.1]} 19. Nc4
{[%clk 0:01:39.1]} 19... Nb6 {[%clk 0:01:55.2]} 20. b3 {[%clk 0:01:13.1]} 20...
Nxc4 {[%clk 0:01:47.3]} 21. Qxc4 {[%clk 0:01:04.6]} 21... Ra3 {[%clk 0:01:42.1]}
22. f4 {[%clk 0:01:00]} 22... Qa7 {[%clk 0:01:40.1]} 23. Rf2 {[%clk 0:00:43.7]}
23... Kg8 {[%clk 0:01:35.1]} 24. h4 {[%clk 0:00:26.7]} 24... Rb4 {[%clk
0:01:23.9]} 25. Qc2 {[%clk 0:00:24.5]} 25... Rbxb3 {[%clk 0:01:14.8]} 26. axb3
{[%clk 0:00:24.6]} 26... Rxa1+ {[%clk 0:01:14.4]} 27. Kh2 {[%clk 0:00:25.2]}
27... Qa5 {[%clk 0:00:53.7]} 28. Re2 {[%clk 0:00:15.2]} 28... h5 {[%clk
0:00:33.8]} 29. f5 {[%clk 0:00:10.4]} 29... Re1 {[%clk 0:00:32.4]} 30. e5 {[%clk
0:00:05.9]} 30... gxf5 {[%clk 0:00:23.2]} 31. exd6 {[%clk 0:00:03.2]} 31... exd6
{[%clk 0:00:20.5]} 32. Rf2 {[%clk 0:00:03.6]} 32... Qa1 {[%clk 0:00:15.5]} 33.
Qxf5 {[%clk 0:00:02.9]} 33... Rh1+ {[%clk 0:00:15.1]} 34. Kg3 {[%clk 0:00:03.6]}
34... Qg7+ {[%clk 0:00:11.9]} 35. Kf3 {[%clk 0:00:02.9]} 35... Rxh4 {[%clk
0:00:07]} 36. g3 {[%clk 0:00:02]} 36... Rg4 {[%clk 0:00:06.6]} 37. Rg2 {[%clk
0:00:01.6]} 37... Qc3+ {[%clk 0:00:06.1]} 38. Kf2 {[%clk 0:00:02.1]} 38... Qd4+
{[%clk 0:00:05.9]} 39. Kf1 {[%clk 0:00:02.4]} 39... Qd1+ {[%clk 0:00:06]} 40.
Kf2 {[%clk 0:00:03]} 40... Qd4+ {[%clk 0:00:06.4]} 41. Kf1 {[%clk 0:00:03.6]}
41... Qa1+ {[%clk 0:00:06.2]} 42. Kf2 {[%clk 0:00:04.1]} 42... Qd4+ {[%clk
0:00:06.8]} 1/2-1/2

[Event "Early-Titled-Tuesday-Blitz-March-05-2024"]
[Site "Chess.com"]
[Date "2024.03.05"]
[Round "2"]
[White "LaPiToB"]
[Black "Elprofessor21"]
[Result "0-1"]
[WhiteElo "2287"]
[BlackElo "2659"]
[TimeControl "180+1"]
[EndTime "8:18:48 PST"]
[Termination "Elprofessor21 won by resignation"]

1. d4 {[%clk 0:03:00.9]} 1... Nf6 {[%clk 0:02:58.3]} 2. c4 {[%clk 0:03:01.1]}
2... c6 {[%clk 0:02:55.3]} 3. Nc3 {[%clk 0:02:59.4]} 3... d5 {[%clk 0:02:55.8]}
4. e3 {[%clk 0:02:59.4]} 4... g6 {[%clk 0:02:53.5]} 5. Nf3 {[%clk 0:02:57]} 5...
Bg7 {[%clk 0:02:53.3]} 6. Be2 {[%clk 0:02:54.9]} 6... O-O {[%clk 0:02:53.5]} 7.
O-O {[%clk 0:02:51.8]} 7... Bg4 {[%clk 0:02:51.2]} 8. b3 {[%clk 0:02:46.5]} 8...
Nbd7 {[%clk 0:02:46.2]} 9. h3 {[%clk 0:02:44.4]} 9... Bxf3 {[%clk 0:02:35.9]}
10. Bxf3 {[%clk 0:02:44.3]} 10... e6 {[%clk 0:02:36.1]} 11. Bb2 {[%clk
0:02:32.9]} 11... Re8 {[%clk 0:02:33.3]} 12. cxd5 {[%clk 0:02:27]} 12... exd5
{[%clk 0:02:31.4]} 13. Rc1 {[%clk 0:02:25.3]} 13... h5 {[%clk 0:02:30.2]} 14. b4
{[%clk 0:02:21.8]} 14... Nb6 {[%clk 0:02:22.5]} 15. Be2 {[%clk 0:02:14.3]} 15...
a6 {[%clk 0:02:18.9]} 16. a4 {[%clk 0:02:12.2]} 16... Nfd7 {[%clk 0:01:59.8]}
17. b5 {[%clk 0:02:01.6]} 17... axb5 {[%clk 0:01:57.8]} 18. axb5 {[%clk
0:02:01.3]} 18... c5 {[%clk 0:01:58.5]} 19. Bf3 {[%clk 0:01:38.5]} 19... Qg5
{[%clk 0:01:17]} 20. dxc5 {[%clk 0:01:09.1]} 20... Nxc5 {[%clk 0:01:13.3]} 21.
Nxd5 {[%clk 0:01:07.3]} 21... Bxb2 {[%clk 0:00:59.7]} 22. Rxc5 {[%clk
0:01:02.7]} 22... Rad8 {[%clk 0:00:57.4]} 23. e4 {[%clk 0:00:34.1]} 23... Be5
{[%clk 0:00:46]} 24. Qc1 {[%clk 0:00:30.5]} 24... Qxc1 {[%clk 0:00:29.4]} 25.
Rfxc1 {[%clk 0:00:30.5]} 25... Nd7 {[%clk 0:00:27.1]} 26. R5c2 {[%clk
0:00:22.2]} 26... Nf8 {[%clk 0:00:27.3]} 27. b6 {[%clk 0:00:20.5]} 27... Ne6
{[%clk 0:00:26.8]} 28. Ra2 {[%clk 0:00:15.3]} 28... Ra8 {[%clk 0:00:17.8]} 29.
Rxa8 {[%clk 0:00:15]} 29... Rxa8 {[%clk 0:00:18.7]} 30. Be2 {[%clk 0:00:12.8]}
30... Nd4 {[%clk 0:00:16.4]} 31. Bf1 {[%clk 0:00:11.8]} 31... g5 {[%clk
0:00:13.9]} 32. g3 {[%clk 0:00:11.5]} 32... Ra2 {[%clk 0:00:13.2]} 33. Kg2
{[%clk 0:00:11.2]} 33... g4 {[%clk 0:00:11.9]} 34. hxg4 {[%clk 0:00:10.6]} 34...
hxg4 {[%clk 0:00:12.8]} 35. Ne3 {[%clk 0:00:10.1]} 35... Nb3 {[%clk 0:00:11.2]}
36. Rc8+ {[%clk 0:00:09.3]} 36... Kg7 {[%clk 0:00:11.1]} 37. Nxg4 {[%clk
0:00:09.9]} 37... Bd4 {[%clk 0:00:11.7]} 38. Bc4 {[%clk 0:00:08.4]} 38... Rc2
{[%clk 0:00:12.3]} 39. Rc7 {[%clk 0:00:07.7]} 39... Nc5 {[%clk 0:00:11.1]} 40.
Rxf7+ {[%clk 0:00:07.3]} 40... Kg6 {[%clk 0:00:11.6]} 41. Rf4 {[%clk 0:00:05.6]}
41... Rxc4 {[%clk 0:00:10.8]} 42. e5 {[%clk 0:00:03.2]} 42... Ne6 {[%clk
0:00:09.8]} 43. Rf6+ {[%clk 0:00:03.1]} 43... Kg5 {[%clk 0:00:10.3]} 44. Rxe6
{[%clk 0:00:03.8]} 44... Kxg4 {[%clk 0:00:11]} 45. Rf6 {[%clk 0:00:04.1]} 45...
Bxe5 {[%clk 0:00:10.5]} 46. f3+ {[%clk 0:00:04.6]} 46... Kg5 {[%clk 0:00:09.9]}
47. Rf5+ {[%clk 0:00:05.5]} 47... Kxf5 {[%clk 0:00:09.9]} 48. g4+ {[%clk
0:00:06.4]} 48... Kf4 {[%clk 0:00:10.3]} 0-1